bitfinex-derivatives/quotes_ETHF0:USTF0_20240925
["timestamp","ask_amount","ask_price","bid_price","bid_amount"]
[1727265705629,1.13359,2628.3,2628.2,11.36409484]
[1727265706325,0.7531,2628.3,2628.2,11.36409484]
[1727265707230,1.13359,2628.3,2628.2,8.15629484]
[1727265708038,0.7531,2628.3,2628.2,8.15629484]
[1727265709128,1.13359,2628.3,2628.2,8.15629484]
[1727265709329,1.13359,2628.3,2628.2,7.77579484]
[1727265709948,1.13359,2628.3,2628.2,8.15629484]
[1727265714141,0.7531,2628.3,2628.2,8.15629484]
[1727265715032,0.7531,2628.3,2628.2,8.53259484]
[1727265716443,1.13359,2628.3,2628.2,8.53259484]
[1727265716840,0.3805,2628.2,2628.1,0.99139002]
[1727265717037,1.8531,2628.3,2628.0,0.99139002]
[1727265717038,0.38052,2628.1,2628.0,0.99139002]
[1727265717238,0.74482,2628.1,2628.0,0.99139002]
[1727265717442,0.74482,2628.1,2628.0,9.11194445]
[1727265717634,5.05262,2628.1,2628.0,0.99139002]
[1727265717956,5.05262,2628.1,2627.9,0.3763]
[1727265717957,0.38053,2628.0,2627.9,0.99139002]
[1727265718248,1.33187,2628.0,2627.9,0.99139002]
[1727265718448,0.38055,2627.9,2627.8,0.99139002]
[1727265718644,2.25215,2627.9,2627.8,2.33051599]
[1727265719447,2.25215,2627.9,2627.8,0.99139002]
[1727265720042,2.25215,2627.9,2627.7,0.99139002]
[1727265720043,0.38056,2627.8,2627.7,0.99139002]
[1727265720641,3.58836,2627.8,2627.7,0.99139002]
[1727265721244,7.39396,2627.8,2627.7,0.99139002]
[1727265721447,0.38058,2627.7,2627.6,0.99139002]
[1727265721638,1.84808,2627.7,2627.6,0.99139002]
[1727265721839,0.38059,2627.6,2627.5,0.99139002]
[1727265722039,0.38059,2627.6,2627.5,2.33036052]
[1727265722243,0.38059,2627.6,2627.5,0.99139002]
[1727265722443,4.18619,2627.6,2627.5,0.99139002]
[1727265722839,0.3806,2627.5,2627.4,0.99139002]
[1727265723147,0.3806,2627.5,2627.4,2.33012818]
[1727265723148,4.6884,2627.5,2627.4,2.33012818]
[1727265723352,4.6884,2627.5,2627.4,0.99139002]
[1727265724449,0.38062,2627.4,2627.3,0.99139002]
[1727265724746,2.27192,2627.4,2627.3,0.99139002]
[1727265725853,0.38063,2627.3,2627.2,0.99139002]
[1727265726045,0.23147287,2627.3,2627.2,2.32919963]
[1727265726348,0.61210287,2627.3,2627.2,0.99139002]
[1727265727544,0.61210287,2627.3,2627.2,1.37204002]
[1727265727749,0.61210287,2627.3,2627.2,0.99139002]
[1727265728146,1.8913,2627.4,2627.2,1.33483056]
[1727265728337,2.27192,2627.4,2627.3,2.82230077]
[1727265728743,3.58842,2627.5,2627.3,2.82230077]
[1727265728944,0.38055,2627.9,2627.8,0.38056]
[1727265729243,0.38055,2627.9,2627.8,1.48056]
[1727265729654,0.38055,2627.9,2627.8,1.1]
[1727265729846,0.38055,2627.9,2627.8,0.38056]
[1727265730063,4.15912,2628.1,2627.7,0.38057]
[1727265730064,0.38056,2627.8,2627.7,0.38057]
[1727265730253,3.2078,2627.8,2627.7,0.38057]
[1727265730856,3.2078,2627.8,2627.6,0.38058]
[1727265730857,3.58837,2627.8,2627.6,0.38058]
[1727265731039,2.05135,2628.0,2627.6,0.38059]
[1727265731243,1.48057,2627.8,2627.6,0.38059]
[1727265731945,0.38058,2627.7,2627.6,0.38059]
[1727265732141,1.1,2627.8,2627.5,1.5436]
[1727265732344,0.38059,2627.7,2627.5,0.7841]
[1727265732542,0.38059,2627.7,2627.4,1.37173823]
[1727265732543,0.3806,2627.5,2627.4,1.37173823]
[1727265732760,0.3806,2627.5,2627.4,0.38062]
[1727265733549,0.3806,2627.5,2627.3,1.37174823]
[1727265733845,0.38062,2627.4,2627.3,0.38062]
[1727265736358,0.38061,2627.5,2627.3,0.38062]
[1727265737658,1.68591,2627.6,2627.2,1.1273]
[1727265737859,0.38062,2627.4,2627.3,0.38063]
[1727265738058,0.38062,2627.4,2627.3,8.54787698]
[1727265738253,0.38062,2627.4,2627.3,8.16724698]
[1727265738451,0.38063,2627.3,2627.2,0.7511]
[1727265738847,3.58843,2627.4,2627.2,8.91834698]
[1727265739052,0.38063,2627.3,2627.2,8.54864698]
[1727265739550,3.58843,2627.4,2627.2,8.54864698]
[1727265739862,3.2078,2627.4,2627.3,0.38063]
[1727265740054,3.2078,2627.4,2627.3,8.15291814]
[1727265740253,3.2078,2627.4,2627.3,0.38063]
[1727265744763,3.2078,2627.4,2627.2,0.3814]
[1727265744764,0.38063,2627.3,2627.2,0.76205]
[1727265744959,0.38063,2627.3,2627.2,0.3814]
[1727265745259,0.38063,2627.3,2627.2,8.18742959]
[1727265745757,0.38063,2627.3,2627.2,8.56807959]
[1727265745970,0.38063,2627.3,2627.2,8.18742959]
[1727265746171,4.74363,2627.4,2627.2,8.56806959]
[1727265746756,0.38063,2627.3,2627.2,8.56806959]
[1727265747168,4.74363,2627.4,2627.2,8.18742959]
[1727265747559,4.74363,2627.4,2627.2,8.56806959]
[1727265747756,4.74363,2627.4,2627.2,8.18742959]
[1727265748164,0.75693,2627.4,2627.2,8.18742959]
[1727265748363,3.2078,2627.6,2627.5,0.3806]
[1727265748863,0.7673,2627.9,2627.5,0.38059]
[1727265748864,0.38058,2627.7,2627.5,0.38059]
[1727265749161,4.92649,2627.9,2627.5,0.38059]
[1727265749162,0.38059,2627.6,2627.5,0.38059]
[1727265749363,0.38059,2627.7,2627.5,0.38059]
[1727265750171,0.38059,2627.6,2627.5,0.38059]
[1727265750464,4.92649,2627.9,2627.4,0.3805]
[1727265750465,0.38058,2627.7,2627.6,0.38059]
[1727265750658,0.38058,2627.7,2627.5,0.38059]
[1727265751366,0.38059,2627.6,2627.5,0.38059]
[1727265752363,0.38058,2627.7,2627.6,0.38058]
[1727265752971,0.38059,2627.6,2627.5,0.38059]
[1727265753360,4.92649,2627.9,2627.4,0.3805]
[1727265753361,0.95143,2627.8,2627.4,0.3805]
[1727265753563,0.3806,2627.5,2627.4,0.38061]
[1727265753971,0.3806,2627.5,2627.4,8.52972497]
[1727265754265,0.3806,2627.5,2627.4,8.14911497]
[1727265754466,0.3806,2627.5,2627.2,0.3814]
[1727265754467,0.38063,2627.3,2627.2,0.3814]
[1727265754662,0.38063,2627.3,2627.1,0.3686]
[1727265755181,0.38063,2627.3,2627.2,8.19782908]
[1727265755472,0.38063,2627.3,2627.2,8.57846908]
[1727265763664,0.38063,2627.3,2627.2,8.19782908]
[1727265763877,1.1,2627.4,2627.0,0.99112823]
[1727265763878,0.38066,2627.1,2627.0,0.99112823]
[1727265764081,0.38066,2627.1,2627.0,0.38067]
[1727265764281,0.38066,2627.1,2627.0,8.57406386]
[1727265764578,0.75716,2627.1,2627.0,8.57406386]
[1727265765373,0.75716,2627.1,2627.0,9.56519209]
[1727265765576,0.75716,2627.1,2627.0,8.57406386]
[1727265765785,0.75716,2627.1,2627.0,9.56519209]
[1727265766077,0.75716,2627.1,2627.0,8.57406386]
[1727265766879,0.75716,2627.1,2627.0,8.19339386]
[1727265767076,1.15506,2627.1,2627.0,8.57407386]
[1727265767271,1.15506,2627.1,2627.0,8.19339386]
[1727265767778,1.15506,2627.1,2626.9,2.14070823]
[1727265768081,1.15506,2627.1,2627.0,7.90236835]
[1727265768274,1.15506,2627.1,2627.0,8.28304835]
[1727265768486,1.15506,2627.1,2626.9,2.14070823]
[1727265768777,1.15506,2627.1,2627.0,7.90236835]
[1727265769169,1.15506,2627.1,2627.0,0.38068]
[1727265769370,0.38068,2627.0,2626.9,2.14070823]
[1727265769582,1.15507,2627.1,2626.9,2.14070823]
[1727265769777,1.15507,2627.1,2627.0,8.1112481]
[1727265770092,1.15507,2627.1,2626.9,2.14070823]
[1727265770382,1.15507,2627.1,2627.0,7.95878072]
[1727265770775,1.15507,2627.1,2626.9,2.14070823]
[1727265771170,1.15507,2627.1,2627.0,7.852111]
[1727265771369,1.15507,2627.1,2626.9,2.14070823]
[1727265771578,1.15507,2627.1,2626.9,1.76002823]
[1727265771781,1.15507,2627.1,2627.0,7.852111]
[1727265772177,1.15507,2627.1,2626.9,2.14070823]
[1727265772478,1.15507,2627.1,2627.0,7.86875534]
[1727265772778,1.15507,2627.1,2626.9,2.14070823]
[1727265773276,1.15507,2627.1,2627.0,8.15667364]
[1727265773483,1.15507,2627.1,2626.9,2.14070823]
[1727265773782,1.15507,2627.1,2627.0,8.15667364]
[1727265774280,1.15507,2627.1,2626.9,2.14070823]
[1727265774672,1.15507,2627.1,2627.0,7.76831284]
[1727265774978,1.15507,2627.1,2627.0,0.38068]
[1727265775876,1.15507,2627.1,2626.9,1.76002823]
[1727265775877,1.15507,2627.1,2626.9,1.75210823]
[1727265776269,1.15507,2627.1,2627.0,8.16951545]
[1727265776471,1.15507,2627.1,2627.0,7.78883545]
[1727265776673,1.15507,2627.1,2626.9,1.75210823]
[1727265777074,1.15507,2627.1,2627.0,7.78883545]
[1727265777483,1.15507,2627.1,2626.9,1.75210823]
[1727265777875,1.15507,2627.1,2627.0,8.06557396]
[1727265778208,1.15507,2627.1,2626.9,0.76098]
[1727265778576,1.15507,2627.1,2627.0,8.58188175]
[1727265778875,1.15507,2627.1,2626.9,0.76098]
[1727265779278,1.15507,2627.1,2627.0,7.86981486]
[1727265779678,1.15507,2627.1,2626.9,0.76098]
[1727265780076,1.15507,2627.1,2627.0,7.86981486]
[1727265780281,0.38068,2627.0,2626.9,0.76098]
[1727265780782,1.33238,2627.0,2626.9,8.06025635]
[1727265780981,1.33238,2627.0,2626.6,0.3909]
[1727265780982,4.18708,2627.0,2626.6,1.37185823]
[1727265781288,0.38071,2626.8,2626.7,7.80348089]
[1727265781686,1.14931,2626.8,2626.7,7.80348089]
[1727265782080,0.7686,2626.8,2626.7,8.18420089]
[1727265783475,1.14931,2626.8,2626.7,8.18420089]
[1727265784684,1.14931,2626.8,2626.7,7.80348089]
[1727265784878,1.14931,2626.8,2626.7,8.18420089]
[1727265785785,1.14931,2626.8,2626.6,1.35782823]
[1727265785786,0.38072,2626.7,2626.6,0.3667]
[1727265785987,1.87482,2626.7,2626.6,0.3667]
[1727265786385,1.87482,2626.7,2626.6,0.74743]
[1727265786386,0.3941,2626.7,2626.6,0.74743]
[1727265786594,0.38067,2627.1,2627.0,0.38068]
[1727265786891,0.77836,2627.2,2627.0,0.38068]
[1727265787089,0.3977,2627.2,2627.0,0.38067]
[1727265787279,0.3977,2627.2,2627.1,0.3658]
[1727265787280,0.77836,2627.2,2627.1,0.3658]
[1727265787476,0.3977,2627.2,2627.1,0.74646]
[1727265787880,0.38065,2627.2,2627.1,0.74646]
[1727265788287,0.38064,2627.3,2627.1,0.74646]
[1727265788593,0.38065,2627.2,2627.1,0.74646]
[1727265789293,0.38065,2627.2,2627.1,0.3658]
[1727265789488,1.48065,2627.2,2627.1,0.3658]
[1727265789694,1.48065,2627.2,2626.9,1.17878]
[1727265789695,0.38068,2627.0,2626.9,1.17878]
[1727265789994,0.76867,2627.1,2627.0,0.38068]
[1727265790382,0.38068,2627.0,2626.9,1.55888]
[1727265791079,0.76867,2627.1,2627.0,0.38068]
[1727265791481,0.76867,2627.1,2626.9,1.55888]
[1727265791685,0.76867,2627.1,2626.9,1.1782]
[1727265791882,0.38068,2627.0,2626.9,0.3801]
[1727265792089,1.15978,2627.0,2626.9,0.3801]
[1727265793583,1.15978,2627.0,2626.6,0.99290396]
[1727265793584,0.7791,2627.0,2626.6,0.99290396]
[1727265793786,1.1,2626.7,2626.6,0.75363]
[1727265793993,0.38071,2626.8,2626.7,0.38071]
[1727265795384,0.38072,2626.7,2626.6,0.75363]
[1727265795602,1.48072,2626.8,2626.6,0.75363]
[1727265795987,1.48072,2626.8,2626.7,0.38072]
[1727265797388,1.48072,2626.8,2626.6,0.75362]
[1727265798393,1.1,2626.8,2626.7,0.38072]
[1727265799493,1.48071,2626.8,2626.7,0.38072]
[1727265800297,1.48071,2626.8,2626.7,2.70874991]
[1727265800591,5.0869,2627.0,2626.7,2.32802991]
[1727265800789,0.38069,2626.9,2626.8,0.99393044]
[1727265804205,1.48069,2626.9,2626.8,0.99393044]
[1727265805802,1.48069,2626.9,2626.8,1.37464044]
[1727265806397,1.48069,2626.9,2626.8,0.99393044]
[1727265806398,2.43242,2626.9,2626.8,0.99393044]
[1727265807315,1.48069,2626.9,2626.8,1.37464044]
[1727265807501,1.48069,2626.9,2626.8,2.70992352]
[1727265807800,1.48069,2626.9,2626.8,2.7100596]
[1727265807994,1.48069,2626.9,2626.8,2.3293496]
[1727265808499,1.48069,2626.9,2626.8,2.32941982]
[1727265808701,1.48069,2626.9,2626.8,0.99410255]
[1727265809004,1.48069,2626.9,2626.8,1.37481255]
[1727265809589,1.48069,2626.9,2626.8,2.71032738]
[1727265810096,1.48069,2626.9,2626.8,1.37481255]
[1727265810303,1.48069,2626.9,2626.8,2.71029132]
[1727265810598,1.48069,2626.9,2626.8,2.32958132]
[1727265810791,1.48069,2626.9,2626.8,2.71029132]
[1727265811105,1.48069,2626.9,2626.8,2.32958132]
[1727265811295,1.48069,2626.9,2626.8,2.71029132]
[1727265811604,1.48069,2626.9,2626.8,0.99410255]
[1727265811605,2.43242,2626.9,2626.8,0.99410255]
[1727265811992,2.43242,2626.9,2626.8,0.38071]
[1727265813209,0.38072,2626.7,2626.6,1.37483255]
[1727265813400,1.48072,2626.7,2626.6,1.37483255]
[1727265813704,1.48072,2626.7,2626.6,0.38073]
[1727265814904,0.38073,2626.6,2626.5,1.37484255]
[1727265815293,0.3936,2626.6,2626.4,0.7559]
[1727265815606,0.38078,2626.3,2626.2,1.37487255]
[1727265815903,0.38078,2626.3,2626.2,1.73907255]
[1727265817304,0.38078,2626.3,2626.2,0.74497]
[1727265817805,2.45029,2626.5,2626.2,0.3642]
[1727265817994,0.38078,2626.3,2626.2,0.74499]
[1727265820206,1.48078,2626.3,2626.2,0.3642]
[1727265820411,0.38079,2626.2,2626.1,1.76080255]
[1727265820602,0.4005,2626.2,2626.1,1.76080255]
[1727265820913,0.4005,2626.2,2626.1,9.77722238]
[1727265823300,0.38081,2626.1,2626.0,0.38081]
[1727265823509,1.87031,2626.1,2626.0,1.71664459]
[1727265823708,1.87031,2626.1,2626.0,0.38081]
[1727265824209,1.8964,2626.2,2626.1,0.38081]
[1727265824519,1.189,2626.8,2626.1,16.72503389]
[1727265824804,1.48074,2626.6,2626.4,0.38075]
[1727265825507,1.48074,2626.6,2626.3,0.99397763]
[1727265825809,1.48074,2626.6,2626.5,0.38075]
[1727265826233,4.3078,2626.6,2626.5,0.38075]
[1727265826414,4.3078,2626.6,2626.5,0.74975]
[1727265827705,3.2078,2626.6,2626.5,0.74975]
[1727265828501,3.2078,2626.6,2626.5,1.74372763]
[1727265829307,3.58853,2626.6,2626.5,1.36297763]
[1727265829503,4.68853,2626.6,2626.5,0.369]
[1727265829699,4.68853,2626.6,2626.5,0.74975]
[1727265831715,4.68853,2626.6,2626.5,0.369]
[1727265832208,4.68853,2626.6,2626.5,0.74975]
[1727265832712,0.38075,2626.5,2626.2,1.77957763]
[1727265832914,0.38075,2626.5,2626.4,0.38076]
[1727265833114,0.38076,2626.4,2626.3,8.6151786]
[1727265833416,4.3078,2626.6,2626.3,8.6151786]
[1727265833417,1.48076,2626.5,2626.4,0.38076]
[1727265833712,1.85136,2626.5,2626.4,0.38076]
[1727265837617,1.85135,2626.5,2626.4,0.38076]
[1727265839005,1.4706,2626.5,2626.4,0.38076]
[1727265840312,1.48074,2626.6,2626.3,8.83748623]
[1727265840512,1.1,2626.5,2626.4,2.12452763]
[1727265840711,1.1,2626.5,2626.4,1.13055]
[1727265841619,1.48074,2626.6,2626.5,0.38075]
[1727265842320,0.38076,2626.4,2626.3,0.99397763]
[1727265842525,0.38076,2626.4,2626.2,0.38078]
[1727265842722,1.5035,2626.3,2626.2,1.37475763]
[1727265843116,1.5035,2626.3,2626.2,9.46590058]
[1727265844232,0.4035,2626.3,2626.2,8.47192295]
[1727265844527,3.2078,2626.7,2626.6,0.38073]
[1727265844528,0.4032,2626.7,2626.6,0.38073]
[1727265845130,0.4032,2626.7,2626.6,1.37453769]
[1727265845350,0.4032,2626.7,2626.6,0.38073]
[1727265845530,0.7947,2626.7,2626.6,0.38073]
[1727265849926,0.3915,2626.7,2626.6,0.38073]
[1727265852627,2.49000149,2627.0,2626.6,14.115]
[1727265852834,3.2078,2627.2,2627.0,0.38067]
[1727265853028,3.2078,2627.2,2626.9,1.1]
[1727265853234,0.3836,2627.1,2627.0,0.38067]
[1727265853536,0.76426,2627.1,2627.0,7.85688432]
[1727265853832,1.14786,2627.1,2626.9,1.78160769]
[1727265854025,0.7672,2627.1,2627.0,0.38068]
[1727265854226,0.7672,2627.1,2627.0,8.23756432]
[1727265854623,1.14786,2627.1,2627.0,0.38068]
[1727265855423,0.7672,2627.1,2627.0,0.38068]
[1727265856735,1.14786,2627.1,2627.0,0.38068]
[1727265857041,0.46958,2627.7,2627.5,0.38059]
[1727265857236,1.16,2627.6,2627.5,0.38059]
[1727265857440,1.54059,2627.6,2627.4,0.38061]
[1727265857628,1.54059,2627.6,2627.2,3.24482158]
[1727265857629,2.26,2627.6,2627.2,1.35724863]
[1727265857830,0.38064,2627.3,2627.1,1.37329863]
[1727265858138,0.3895,2627.2,2627.1,0.38065]
[1727265858433,0.7619,2627.2,2627.1,8.44496074]
[1727265860238,1.1348,2627.2,2627.1,8.44496074]
[1727265860536,1.51545,2627.2,2627.1,8.44496074]
[1727265860738,2.61545,2627.2,2627.0,0.38066]
[1727265860943,2.61545,2627.2,2627.1,0.38066]
[1727265861143,2.2348,2627.2,2627.1,0.38066]
[1727265861845,2.61546,2627.2,2627.0,0.38067]
[1727265862238,2.61546,2627.2,2627.1,0.38066]
[1727265863043,2.2348,2627.2,2627.1,0.38066]
[1727265864535,2.61545,2627.2,2627.0,0.38067]
[1727265864740,2.61545,2627.2,2626.8,1.1578]
[1727265864947,2.61545,2627.2,2627.1,0.38066]
[1727265865143,2.2348,2627.2,2627.1,0.38066]
[1727265866950,2.61545,2627.2,2627.1,0.38066]
[1727265867946,2.91995,2627.2,2627.1,0.38066]
[1727265868248,2.5393,2627.2,2627.1,0.38066]
[1727265870635,2.91995,2627.2,2627.1,0.38066]
[1727265872344,6.3457,2627.2,2626.9,0.38068]
[1727265872537,1.1,2627.0,2626.9,0.38068]
[1727265872752,4.3078,2627.0,2626.8,8.18213949]
[1727265872948,0.7699,2626.9,2626.8,0.3807]
[1727265873643,1.8699,2626.9,2626.8,0.3807]
[1727265874647,2.2424,2626.9,2626.8,0.3807]
[1727265880043,1.8617,2626.9,2626.8,0.3807]
[1727265880554,2.24239,2626.9,2626.8,0.3807]
[1727265880749,0.38071,2626.8,2626.7,0.38071]
[1727265880949,1.13811,2626.8,2626.7,0.38071]
[1727265882556,0.38074,2626.6,2626.5,0.38074]
[1727265882761,0.38075,2626.5,2626.4,0.38075]
[1727265883059,0.77245,2626.5,2626.4,8.4020567]
[1727265883266,0.77245,2626.5,2626.4,8.0213067]
[1727265883472,0.77245,2626.5,2626.4,0.38076]
[1727265883958,0.77245,2626.5,2626.3,0.38077]
[1727265883959,0.38076,2626.4,2626.3,0.38077]
[1727265884151,1.14536,2626.4,2626.3,0.38077]
[1727265884352,0.7646,2626.4,2626.3,0.38077]
[1727265884554,1.14536,2626.4,2626.3,0.38077]
[1727265884957,0.7646,2626.4,2626.3,0.38077]
[1727265885463,1.14536,2626.4,2626.3,0.38077]
[1727265885762,0.7646,2626.4,2626.3,0.38077]
[1727265886161,1.14536,2626.4,2626.3,0.38077]
[1727265886366,0.7646,2626.4,2626.3,0.38077]
[1727265887157,1.14536,2626.4,2626.3,0.38077]
[1727265889662,0.77245,2626.5,2626.4,0.38076]
[1727265890662,0.3917,2626.5,2626.4,0.38076]
[1727265891664,6.03101,2626.7,2626.5,0.38075]
[1727265891665,1.3809,2626.6,2626.5,0.38075]
[1727265891862,1.3809,2626.6,2626.5,1.48075]
[1727265892259,1.3809,2626.6,2626.5,2.25775]
[1727265892469,1.3809,2626.6,2626.5,1.15775]
[1727265893171,0.38073,2626.7,2626.6,0.38073]
[1727265893365,1.85042,2626.8,2626.6,0.38073]
[1727265893566,0.38072,2626.7,2626.6,0.38073]
[1727265901765,1.5887,2626.8,2626.7,0.38072]
[1727265901970,0.68519,2626.9,2626.8,0.38071]
[1727265903066,0.68519,2626.9,2626.7,0.38071]
[1727265903067,0.6852,2626.9,2626.7,0.38071]
[1727265903375,0.3045,2626.9,2626.7,9.15874267]
[1727265903583,0.6852,2626.9,2626.8,0.38071]
[1727265903781,1.20779,2626.8,2626.7,1.1]
[1727265904088,1.20779,2626.8,2626.7,1.48072]
[1727265904269,1.20779,2626.8,2626.7,5.28792]
[1727265904575,1.20779,2626.8,2626.7,5.69112]
[1727265905375,0.3045,2626.9,2626.8,0.38071]
[1727265905976,0.3045,2626.9,2626.8,13.34253159]
[1727265907171,0.3045,2626.9,2626.8,8.43533159]
[1727265907673,0.3045,2626.9,2626.8,12.24253159]
[1727265908468,0.3045,2626.9,2626.8,13.34253159]
[1727265910085,0.3045,2626.9,2626.8,8.43533159]
[1727265910873,0.3045,2626.9,2626.8,12.24253159]
[1727265912777,0.3045,2626.9,2626.8,13.23439456]
[1727265912968,0.3045,2626.9,2626.8,9.42719456]
[1727265914769,0.3045,2626.9,2626.8,8.43533159]
[1727265915676,0.3045,2626.9,2626.8,9.42719456]
[1727265916178,0.3045,2626.9,2626.8,8.43533159]
[1727265916867,0.3045,2626.9,2626.8,9.42719456]
[1727265920977,0.3045,2626.9,2626.8,8.43533159]
[1727265923370,73.1745,2626.9,2626.8,8.43533159]
[1727265926277,73.55519,2626.9,2626.8,8.43533159]
[1727265926678,73.1745,2626.9,2626.8,8.43533159]
[1727265929487,73.55519,2626.9,2626.8,8.05462159]
[1727265929687,0.38071,2626.8,2626.7,1.37257297]
[1727265929877,0.38071,2626.8,2626.7,0.38071]
[1727265930185,73.647,2626.9,2626.8,8.37689313]
[1727265930382,73.647,2626.9,2626.8,0.38071]
[1727265930874,74.8542,2626.9,2626.8,0.38071]
[1727265931278,0.38071,2626.8,2626.7,0.38072]
[1727265931478,0.68521,2626.8,2626.7,0.38072]
[1727265931679,0.68521,2626.8,2626.7,8.20741321]
[1727265932482,0.3045,2626.8,2626.7,8.20741321]
[1727265933383,0.3045,2626.8,2626.7,9.19927618]
[1727265935877,0.3045,2626.8,2626.7,8.20741321]
[1727265936788,0.68521,2626.8,2626.7,8.20741321]
[1727265937094,0.68521,2626.8,2626.7,9.19927618]
[1727265937289,0.3045,2626.8,2626.7,9.19927618]
[1727265937481,0.68521,2626.8,2626.7,9.19927618]
[1727265937682,0.38072,2626.7,2626.6,0.99186297]
[1727265937988,0.38072,2626.7,2626.3,0.99186297]
[1727265937989,0.38076,2626.4,2626.3,0.99186297]
[1727265938186,0.38076,2626.4,2626.3,0.38078]
[1727265938390,0.38076,2626.4,2626.3,8.35756241]
[1727265938589,0.38078,2626.3,2626.2,0.38078]
[1727265938887,0.38078,2626.3,2626.2,8.29317305]
[1727265939085,0.77857,2626.4,2626.2,8.29317305]
[1727265939284,0.38078,2626.3,2626.2,0.38079]
[1727265939886,0.38078,2626.3,2626.1,0.3808]
[1727265940081,0.3683,2626.2,2626.1,0.3808]
[1727265940290,0.3683,2626.2,2626.1,8.59567694]
[1727265940992,0.74909,2626.2,2626.0,1.74246297]
[1727265941180,0.74909,2626.2,2626.0,2.12327297]
[1727265941382,0.74909,2626.2,2626.1,8.10478245]
[1727265941589,0.74909,2626.2,2626.0,2.12327297]
[1727265941890,0.3846,2626.1,2626.0,0.38081]
[1727265942292,0.3846,2626.1,2626.0,8.19360329]
[1727265943192,0.76541,2626.1,2626.0,7.81279329]
[1727265943695,0.76541,2626.1,2626.0,8.19361329]
[1727265943696,0.3846,2626.1,2626.0,8.19361329]
[1727265944593,0.76541,2626.1,2626.0,8.19361329]
[1727265944985,0.3846,2626.1,2626.0,8.19361329]
[1727265945189,0.76541,2626.1,2626.0,8.19361329]
[1727265945493,1.07001,2626.1,2626.0,8.19361329]
[1727265947592,1.44311,2626.1,2626.0,8.52675272]
[1727265947793,1.0623,2626.1,2626.0,8.52675272]
[1727265948280,1.44311,2626.1,2626.0,8.52675272]
[1727265951595,2.65041,2626.1,2626.0,8.52675272]
[1727265952293,2.65041,2626.1,2626.0,8.14593272]
[1727265953096,2.65041,2626.1,2625.9,0.38083]
[1727265953097,0.38082,2626.0,2625.9,0.38083]
[1727265953393,0.38082,2626.0,2625.9,8.40238378]
[1727265954090,75.52042,2626.1,2626.0,0.38082]
[1727265956285,75.52042,2626.1,2625.9,0.77783]
[1727265956486,75.52042,2626.1,2626.0,0.38082]
[1727265956793,75.52042,2626.1,2626.0,8.20156665]
[1727265956985,75.52042,2626.1,2626.0,0.38082]
[1727265957890,75.13581,2626.1,2626.0,0.38082]
[1727265958295,74.3819,2626.1,2626.0,1.85882]
[1727265959085,74.3819,2626.1,2626.0,10.95966578]
[1727265960089,74.3819,2626.1,2626.0,14.16746578]
[1727265960800,74.3819,2626.1,2626.0,18.92752578]
[1727265960987,74.3819,2626.1,2626.0,17.97546578]
[1727265961190,74.3819,2626.1,2626.0,13.21540578]
[1727265961495,74.3819,2626.1,2626.0,10.00760578]
[1727265962499,74.3819,2626.1,2626.0,10.95966578]
[1727265962701,74.3819,2626.1,2626.0,14.76766578]
[1727265963998,74.3819,2626.1,2626.0,13.81560578]
[1727265964594,73.81039671,2626.1,2626.0,13.81560578]
[1727265964890,72.87,2626.1,2626.0,13.81560578]
[1727265965098,72.87,2626.1,2626.0,10.00760578]
[1727265965802,72.87,2626.1,2626.0,10.95966578]
[1727265966004,72.87,2626.1,2626.0,21.71972578]
[1727265966296,72.87,2626.1,2626.0,27.33015817]
[1727265966297,71.88818695,2626.1,2626.0,27.33015817]
[1727265966501,71.88818695,2626.1,2626.0,31.96510138]
[1727265966692,60.07491128,2626.1,2626.0,30.96733125]
[1727265966897,60.07491128,2626.1,2626.0,33.44698868]
[1727265967495,60.07491128,2626.1,2626.0,30.96733125]
[1727265967893,60.07491128,2626.1,2626.0,32.94469553]
[1727265968095,60.07491128,2626.1,2626.0,32.92578935]
[1727265968298,60.07491128,2626.1,2626.0,30.29352245]
[1727265968504,60.07491128,2626.1,2626.0,32.92601114]
[1727265968899,60.07491128,2626.1,2626.0,32.91659709]
[1727265969114,60.07491128,2626.1,2626.0,32.91666878]
[1727265969796,60.07491128,2626.1,2626.0,32.91711111]
[1727265969991,60.07491128,2626.1,2626.0,32.91756864]
[1727265970601,60.07491128,2626.1,2626.0,36.12536864]
[1727265971598,60.07491128,2626.1,2626.0,34.14754683]
[1727265973706,60.07491128,2626.1,2626.0,30.19825407]
[1727265974008,60.07491128,2626.1,2626.0,34.14909616]
[1727265975402,60.07491128,2626.1,2626.0,30.94129616]
[1727265975604,60.07491128,2626.1,2626.0,34.14909616]
[1727265976106,60.07491128,2626.1,2626.0,32.83274924]
[1727265976300,60.07491128,2626.1,2626.0,34.14999682]
[1727265976609,60.07491128,2626.1,2626.0,36.62383194]
[1727265977102,60.07491128,2626.1,2626.0,34.14999682]
[1727265977295,60.07491128,2626.1,2626.0,36.62383194]
[1727265978809,60.07491128,2626.1,2626.0,36.62438094]
[1727265981298,60.07491128,2626.1,2626.0,36.62501169]
[1727265982310,60.07491128,2626.1,2626.0,34.15054582]
[1727265982504,60.07491128,2626.1,2626.0,33.41707727]
[1727265982702,60.07491128,2626.1,2626.0,36.62487727]
[1727265983221,60.07491128,2626.1,2626.0,34.15054582]
[1727265983399,60.07491128,2626.1,2626.0,30.19825407]
[1727265983400,61.01441128,2626.1,2626.0,30.19825407]
[1727265983597,61.01441128,2626.1,2626.0,30.94309931]
[1727265983796,61.01441128,2626.1,2626.0,38.52935108]
[1727265983995,61.01441128,2626.1,2626.0,36.05502931]
[1727265984410,61.01441128,2626.1,2626.0,38.52919057]
[1727265985010,61.01441128,2626.1,2626.0,36.05502931]
[1727265985196,61.01441128,2626.1,2626.0,38.52912065]
[1727265987613,61.01441128,2626.1,2626.0,32.52912065]
[1727265988512,61.01441128,2626.1,2626.0,32.52806557]
[1727265992904,61.01441128,2626.1,2626.0,30.62393557]
[1727265993106,61.01441128,2626.1,2626.0,30.24593557]
[1727265993311,61.01441128,2626.1,2626.0,30.24653254]
[1727265993802,61.01441128,2626.1,2626.0,28.19447254]